fUST/lending_fUST_20240704
["ID","MTS","AMOUNT","RATE_DAILY","PERIOD"]
[331042960,1720033841885,-500.0,0.00014843,2]
[331042961,1720033841895,-500.0,0.00014843,2]
[331042962,1720033841904,-254.4335681,0.00014843,2]
[331042963,1720033841913,-222.835982,0.00014843,2]
[331042964,1720033841930,-151.0,0.00014843,2]
[331042965,1720033841939,-222.835982,0.00014843,2]
[331042966,1720033841948,-151.0,0.00014843,2]
[331042967,1720033841959,-185.081782,0.00014843,2]
[331042968,1720033841968,-500.0,0.00014843,2]
[331042969,1720033841977,-500.0,0.00014843,2]
[331042970,1720033841987,-625.17641,0.00014843,2]
[331042971,1720033841996,-625.17641,0.00014843,2]
[331042972,1720033842006,-4360.51,0.00014843,2]
[331042973,1720033842015,-1375.188135,0.00014843,2]
[331042974,1720033842024,-501.47274345,0.00014843,2]
[331042975,1720033842034,-1375.188135,0.00014843,2]
[331042976,1720033842044,-843.909783,0.00014843,2]
[331042977,1720033842054,-843.909783,0.00014843,2]
[331042978,1720033842063,-769.176911,0.00014843,2]
[331042979,1720033842072,-500.0,0.00014843,2]
[331042980,1720033842082,-544.72442179,0.00014843,2]
[331042981,1720033842091,-769.176911,0.00014843,2]
[331042982,1720033842100,-500.0,0.00014843,2]
[331042983,1720033842110,-504.74338014,0.00014843,2]
[331042984,1720033842120,-502.20170737,0.00014843,2]
[331042985,1720033842129,-505.03452232,0.00014843,2]
[331042986,1720033842139,-500.0,0.00014843,2]
[331042987,1720033842148,-189.71,0.00014843,2]
[331042988,1720033842157,-500.0,0.00014843,2]
[331042989,1720033842173,-506.222105,0.00014843,2]
[331042990,1720033842182,-1182.27,0.00014843,2]
[331042991,1720033842192,-151.0,0.00014843,2]
[331042992,1720033842201,-680.71,0.00014843,2]
[331042993,1720033842210,-761.95,0.00014843,2]
[331042994,1720033842219,-515.5339889,0.00014843,2]
[331042995,1720033842229,-500.0,0.00014843,2]
[331042996,1720033842238,-500.0,0.00014843,2]
[331042997,1720033842248,-500.0,0.00014843,2]
[331042998,1720033842257,-500.0,0.00014843,2]
[331042999,1720033842268,-508.32165735,0.00014843,2]
[331043000,1720033842278,-1104.69,0.00014843,2]
[331043001,1720033842288,-500.0,0.00014843,2]
[331043002,1720033842298,-500.0,0.00014843,2]
[331043003,1720033842307,-500.0,0.00014843,2]
[331043004,1720033842316,-500.0,0.00014843,2]
[331043005,1720033842325,-500.0,0.00014843,2]
[331043006,1720033842334,-500.0,0.00014843,2]
[331043007,1720033842344,-366.11729614,0.00014843,2]
[331043008,1720033842353,-500.0,0.00014843,2]
[331043009,1720033842362,-500.0,0.00014843,2]
[331043010,1720033842372,-165.296384,0.00014843,2]
[331043011,1720033842382,-165.296384,0.00014843,2]
[331043012,1720033842391,-500.0,0.00014843,2]
[331043013,1720033842400,-209.52401582,0.00014843,2]
[331043014,1720033842409,-500.0,0.00014843,2]
[331043015,1720033842425,-500.0,0.00014843,2]
[331043016,1720033842435,-504.78944374,0.00014843,2]
[331043017,1720033842444,-500.55736945,0.00014843,2]
[331043018,1720033842453,-500.0,0.00014843,2]
[331043019,1720033842462,-500.0,0.00014843,2]
[331043020,1720033842470,-503.62830602,0.00014843,2]
[331043021,1720033842480,-500.0,0.00014843,2]
[331043022,1720033842489,-656.7,0.00014843,2]
[331043023,1720033842497,-501.74471623,0.00014843,2]
[331043024,1720033842507,-500.53430089,0.00014843,2]
[331043025,1720033842516,-501.74566429,0.00014843,2]
[331043026,1720033842526,-536.79233008,0.00014843,2]
[331043027,1720033842535,-408.18166469,0.00014843,2]
[331043028,1720033842545,-210.98216367,0.00014843,2]
[331043029,1720033842554,-600.99250218,0.00014843,2]
[331043030,1720033842563,-500.0,0.00014843,2]
[331043031,1720033842573,-501.41845044,0.00014843,2]
[331043032,1720033842582,-500.0,0.00014843,2]
[331043033,1720033842592,-500.0,0.00014843,2]
[331043034,1720033842602,-500.0,0.00014843,2]
[331043035,1720033842611,-500.0,0.00014843,2]
[331043036,1720033842620,-367.465425,0.00014843,2]
[331043037,1720033842629,-367.465425,0.00014843,2]
[331043038,1720033842638,-367.465425,0.00014843,2]
[331043039,1720033842647,-501.05304247,0.00014843,2]
[331043040,1720033842656,-367.465425,0.00014843,2]
[331043041,1720033842666,-367.465425,0.00014843,2]
[331043042,1720033842679,-367.465425,0.00014843,2]
[331043043,1720033842688,-151.0,0.00014843,2]
[331043044,1720033842697,-151.0,0.00014843,2]
[331043045,1720033842706,-151.0,0.00014843,2]
[331043046,1720033842715,-500.0,0.00014843,2]
[331043047,1720033842724,-500.0,0.00014843,2]
[331043048,1720033842733,-359.85,0.00014843,2]
[331043049,1720033842742,-814.2,0.00014843,2]
[331043050,1720033842751,-814.2,0.00014843,2]
[331043052,1720033842763,-814.2,0.00014843,2]
[331043054,1720033842774,-500.0,0.00014843,2]
[331043056,1720033842783,-814.2,0.00014843,2]
[331043058,1720033842792,-500.0,0.00014843,2]
[331043060,1720033842805,-814.2,0.00014843,2]
[331043062,1720033842814,-151.0,0.00014843,2]
[331043063,1720033842823,-814.2,0.00014843,2]
[331043064,1720033842832,-814.2,0.00014843,2]
[331043065,1720033842842,-501.28127056,0.00014843,2]
[331043066,1720033842851,-500.0,0.00014843,2]
[331043067,1720033842860,-151.0,0.00014843,2]
[331043068,1720033842870,-501.89000106,0.00014843,2]
[331043069,1720033842882,-188.27053171,0.00014843,2]
[331043070,1720033842891,-500.0,0.00014843,2]
[331043071,1720033842900,-213.15486661,0.00014843,2]
[331043230,1720034204865,531.71964823,9.999e-05,2]
[331043231,1720034231468,244.76159547,9.999e-05,2]
[331043232,1720034245659,155.18245256,9.999e-05,2]
[331043233,1720034257019,155.40063511,9.999e-05,2]
[331043234,1720034258432,207.92285488,9.999e-05,2]
[331043235,1720034281545,427.50730024,9.999e-05,2]
[331043238,1720034433846,168.50427389,9.999e-05,2]
[331043239,1720034437747,264.53194069,9.999e-05,2]
[331043242,1720034758107,-683.22674852,0.0001212,2]
[331043243,1720034758127,-128.22314822,0.0001212,2]
[331043244,1720034772085,1314.0,0.000225,30]
[331043245,1720034828127,-272.18430499,0.00013659,2]
[331043246,1720034829191,-159.62058528,0.00013659,2]
[331043247,1720034831190,-1303.65814682,0.00013659,2]
[331043248,1720034842098,-230.34705166,0.00013659,2]
[331043249,1720034842119,-276.34542,0.0001376,2]
[331043250,1720034842141,-239.64737647,0.00013766,2]
[331043251,1720034846109,-216.80646707,0.00013766,2]
[331043252,1720034851115,-639.8923815,0.00013766,2]
[331043253,1720034851369,1324.70883884,0.000152,6]
[331043254,1720034854116,-155.75056647,0.00013766,2]
[331043257,1720034945255,-1060.23928409,0.00013766,2]
[331043258,1720034945274,-538.5990871,0.00013766,2]
[331043259,1720034980784,7514.59650295,0.000225,30]
[331043275,1720035035918,-155.0,0.00014644,2]
[331043276,1720035035928,-1399.0711182,0.00014725,2]
[331043277,1720035035939,-516.3531595,0.00014735,2]
[331043279,1720035035949,-516.35315947,0.00014737,2]
[331043281,1720035035960,-516.35315947,0.0001474,2]
[331043283,1720035035973,-516.35315947,0.00014742,2]
[331043285,1720035035983,-516.35315947,0.00014744,2]
[331043287,1720035035993,-153.0,0.000148,2]
[331043289,1720035036003,-89.08420591,0.00014823,2]
[331043292,1720035036015,-210.91579409,0.00014823,2]
[331043294,1720035036025,-216.75320753,0.00014824,2]
[331043296,1720035036034,-360.34299201,0.00014824,2]
[331043298,1720035036044,-284.31275924,0.00014824,2]
[331043300,1720035036055,-500.0,0.00014824,2]
[331043302,1720035036065,-350.41924565,0.00014824,2]
[331043303,1720035036075,-500.0,0.00014824,2]
[331043304,1720035036085,-418.90587591,0.00014824,2]
[331043306,1720035036095,-500.0,0.00014824,2]
[331043308,1720035036104,-385.58444673,0.00014824,2]
[331043310,1720035036114,-500.0,0.00014824,2]
[331043312,1720035036123,-901.6062963,0.00014825,2]
[331043354,1720035038483,-3871.13176789,0.00014825,2]
[331043380,1720035038768,-1804.37081074,0.00014825,2]
[331043381,1720035038780,-547.3820516,0.00014825,2]
[331043382,1720035038792,-1001.40150104,0.00014825,2]
[331043404,1720035042012,-22949.17481177,0.00014825,2]
[331043405,1720035042023,-915.72918684,0.00014825,2]
[331043406,1720035042033,-39037.92861286,0.00014825,2]
[331043407,1720035042046,-1251.4726332,0.00014825,2]
[331043408,1720035042059,-619.71305479,0.00014825,2]
[331043409,1720035042071,-261.546,0.00014825,2]
[331043410,1720035042082,-12426.4451293,0.00014825,2]
[331043632,1720035048339,-7217.20084112,0.00014825,2]
[331043635,1720035048351,-599.7,0.00014825,2]
[331043661,1720035054010,193.8748553,0.00013833,2]
[331043662,1720035054033,270.60172388,0.00013833,2]
[331043663,1720035106466,161.80604276,0.00010959,2]
[331043664,1720035106487,346.41395724,0.00010959,2]
[331043666,1720035297398,531.07966407,9.999e-05,2]
[331043669,1720035390910,309.69030738,9.999e-05,2]
[331043671,1720035405485,200.83581235,9.999e-05,2]
[331043672,1720035418592,240.69985768,9.999e-05,2]
[331043677,1720035446138,155.6963359,9.999e-05,2]
[331043680,1720035468811,182.33432574,9.999e-05,2]
[331043683,1720035503749,260.12071393,9.999e-05,2]
[331043685,1720035715456,155.0,9.999e-05,2]
[331043686,1720035745553,155.0,9.999e-05,2]
[331043688,1720035762023,667.24,0.00010959,2]
[331043697,1720035840695,155.29816351,0.00010959,2]
[331043701,1720035953102,-166.4300597,0.0001212,2]
[331043702,1720035953122,-582.25247584,0.00013477,2]
[331043705,1720036025052,661.0,0.00025,120]
[331043706,1720036032114,-151.0,0.00013477,2]
[331043707,1720036033089,-310.16162881,0.00013477,2]
[331043708,1720036034103,-190.85974906,0.00013477,2]
[331043710,1720036036083,-1014.08783808,0.00013477,2]
[331043711,1720036045094,-607.76098322,0.00013477,2]
[331043712,1720036045157,-989.06428844,0.00013477,2]
[331043714,1720036048122,-154.03226753,0.00013477,2]
[331043715,1720036050969,-1774.36193228,0.00013477,2]
[331043721,1720036145125,-1122.15,0.00013477,2]
[331043722,1720036150222,-664.54506014,0.00013477,2]
[331043723,1720036150242,-268.08468,0.00013699,2]
[331043724,1720036150262,-500.0,0.00013699,2]
[331043725,1720036150282,-300.0,0.0001373,2]
[331043726,1720036150301,-8340.517259,0.00013731,2]
[331043727,1720036150320,-209.39945007,0.00013733,2]
[331043728,1720036161134,-186.21193312,0.00014258,2]
[331043730,1720036163632,197.2047054,0.0001371,2]
[331043731,1720036167097,-304.5452946,0.0001371,2]
[331043733,1720036180837,195.4547054,0.00013699,2]
[331043769,1720036232647,-500.0,0.00013699,2]
[331043771,1720036232657,-500.0,0.0001371,2]
[331043773,1720036232665,-304.54,0.0001371,2]
[331043775,1720036232675,-500.0,0.00013984,2]
[331043777,1720036232683,-500.0,0.00014258,2]
[331043779,1720036232692,-583.23,0.00014258,2]
[331043781,1720036232701,-300.0,0.00014393,2]
[331043783,1720036232710,-230.6900715,0.000144,2]
[331043785,1720036232720,-187.28341,0.00014521,2]
[331043787,1720036232729,-153.0,0.00014521,2]
[331043789,1720036232738,-1382.10419045,0.0001472,2]
[331043790,1720036232746,-4103.58590134,0.00014722,2]
[331043792,1720036232755,-1383.46085525,0.00014733,2]
[331043794,1720036232765,-425.67176277,0.00014811,2]
[331043796,1720036232774,-415.67533402,0.00014811,2]
[331043798,1720036232783,-500.0,0.00014811,2]
[331043801,1720036232793,-500.0,0.00014811,2]
[331043802,1720036232802,-42059.58454557,0.00014812,2]
[331043804,1720036232812,-228342.78308505,0.00014812,2]
[331044011,1720036243634,-500.0,0.00014811,2]
[331044012,1720036243644,-231.25757574,0.00014811,2]
[331044013,1720036243666,-39.34414814,0.00014811,2]
[331044014,1720036243676,-406.667883,0.00014811,2]
[331044015,1720036243686,-500.0,0.00014811,2]
[331044016,1720036243698,-500.0,0.00014811,2]
[331044017,1720036243707,-457.86459342,0.00014812,2]
[331044018,1720036243716,-18526.70647532,0.00014812,2]
[331044020,1720036243733,-2930.85797139,0.00014812,2]
[331044055,1720036247074,-1198.2,0.00014812,2]
[331044059,1720037140160,-347.90513044,0.00013577,2]
[331044060,1720037140182,-418.06536156,0.00013677,2]
[331044061,1720037225195,-999.30628323,0.00013677,2]
[331044062,1720037227182,-151.0,0.00013677,2]
[331044063,1720037245125,-2948.04873111,0.00013677,2]
[331044064,1720037245148,-222.80628323,0.00013677,2]
[331044065,1720037245172,-268.084681,0.00013699,2]
[331044066,1720037245198,-958.4403918,0.00013699,2]
[331044067,1720037245224,-155.0,0.0001424,2]
[331044068,1720037245254,-405.29297538,0.00014701,2]
[331044069,1720037245284,-1330.54851195,0.00014711,2]
[331044070,1720037245306,-300.0,0.00014798,2]
[331044071,1720037245331,-300.0,0.00014798,2]
[331044072,1720037245358,-450.97802154,0.00014799,2]
[331044073,1720037245384,-376.64923443,0.000148,2]
[331044074,1720037245408,-178.14657172,0.000148,2]
[331044075,1720037245432,-500.0,0.000148,2]
[331044076,1720037245455,-500.0,0.000148,2]
[331044077,1720037245480,-500.0,0.000148,2]
[331044078,1720037245505,-500.0,0.000148,2]
[331044079,1720037245534,-500.0,0.000148,2]
[331044080,1720037245561,-500.0,0.000148,2]
[331044081,1720037245585,-500.0,0.000148,2]
[331044082,1720037245608,-500.0,0.000148,2]
[331044083,1720037245632,-472.483575,0.000148,2]
[331044084,1720037245655,-350.25660984,0.000148,2]
[331044085,1720037245678,-500.0,0.000148,2]
[331044086,1720037245703,-500.0,0.000148,2]
[331044087,1720037245725,-383.22579443,0.000148,2]
[331044088,1720037245749,-500.0,0.000148,2]
[331044089,1720037245776,-500.0,0.000148,2]
[331044090,1720037245799,-355.9562426,0.000148,2]
[331044091,1720037245822,-250.47497656,0.000148,2]
[331044092,1720037245849,-500.0,0.000148,2]
[331044093,1720037245873,-500.0,0.000148,2]
[331044094,1720037245897,-433.5182958,0.000148,2]
[331044095,1720037245924,-501.16166875,0.000148,2]
[331044096,1720037245948,-386.0638877,0.000148,2]
[331044097,1720037245970,-308.5610459,0.000148,2]
[331044098,1720037245996,-228.98823611,0.00014801,2]
[331044099,1720037249138,-1330.30321478,0.00014801,2]
[331044100,1720037250991,-937.50687397,0.00014801,2]
[331044101,1720037388837,-1184.11598276,0.00014701,2]
[331044102,1720037388872,-157.95460959,0.00014794,2]
[331044103,1720037388913,-500.0,0.000148,2]
[331044104,1720037388950,-500.0,0.000148,2]
[331044105,1720037388984,-300.0,0.000148,2]
[331044106,1720037389019,-571.35,0.000148,2]
[331044107,1720037389069,-500.0,0.000148,2]
[331044108,1720037389108,-247.88793051,0.000148,2]
[331044109,1720037389149,-21918.22129699,0.00014801,2]
[331044110,1720037389184,-228.93229671,0.00014801,2]
[331044111,1720037411022,5475.83,0.000148,2]
[331044112,1720037416605,405.73857827,0.000148,2]
[331044113,1720037428507,500.0,0.000148,2]
[331044114,1720037431244,571.95,0.000148,2]
[331044115,1720037432256,206.01723877,0.000148,2]
[331044116,1720037432342,307.20175991,0.000148,2]
[331044128,1720037433636,-19503.17308904,0.00014801,2]
[331044129,1720037435859,228.93229671,0.00014801,2]
[331044195,1720037440750,500.0,0.000148,2]
[331044197,1720037441407,-11716.26804105,0.00014801,2]
[331044198,1720037441541,167.01807719,0.000148,2]
[331044199,1720037441577,500.0,0.000148,2]
[331044200,1720037441614,651.12809042,0.000148,2]
[331044201,1720037441662,500.0,0.000148,2]
[331044202,1720037441697,500.0,0.000148,2]
[331044203,1720037441734,500.0,0.000148,2]
[331044204,1720037441769,232.38899854,0.000148,2]
[331044205,1720037442296,533.78031989,0.000148,2]
[331044252,1720037443964,-695.89250673,0.00014801,2]
[331044266,1720037447579,1488.48,0.000148,2]
[331044271,1720037448109,-597.7,0.00014801,2]
[331044272,1720037448242,-73.39186146,0.00014801,2]
[331044273,1720037450078,500.0,0.000148,2]
[331044274,1720037451733,500.0,0.000148,2]
[331044275,1720037455220,10702.28914743,0.00014701,2]
[331044276,1720037461089,300.0,0.000148,2]
[331044277,1720037467008,4460.80820831,0.00014798,2]
[331044278,1720037477033,181.82027593,0.00014701,2]
[331044279,1720037482892,558.25039303,0.00014701,2]
[331044280,1720037483953,500.0,0.000148,2]
[331044281,1720037490945,10959.1106485,0.00014801,2]
[331044282,1720037490983,578.45360316,0.00014701,2]
[331044283,1720037497965,530.09972899,0.000148,2]
[331044284,1720037502428,253.69776115,0.000148,2]
[331044285,1720037503386,504.40219872,0.000148,2]
[331044286,1720037506296,153.0,6.622e-05,2]
[331044287,1720037507306,153.0,6.622e-05,2]
[331044288,1720037508300,153.0,6.622e-05,2]
[331044289,1720037509286,153.0,6.621e-05,2]
[331044290,1720037510272,153.0,6.621e-05,2]
[331044291,1720037511231,153.0,6.621e-05,2]
[331044292,1720037512912,153.0,6.62e-05,2]
[331044293,1720037513760,153.0,6.62e-05,2]
[331044294,1720037514858,153.0,6.62e-05,2]
[331044295,1720037515691,153.0,6.619e-05,2]
[331044296,1720037517835,500.0,0.000148,2]
[331044297,1720037519465,500.0,0.000148,2]
[331044298,1720037520414,153.0,6.618e-05,2]
[331044299,1720037530288,500.0,0.000148,2]
[331044300,1720037530740,500.0,0.000148,2]
[331044301,1720037530823,155.0,0.0001443,2]
[331044302,1720037584641,711.84845566,9.999e-05,2]
[331044303,1720037584668,284.59476787,9.999e-05,2]
[331044304,1720037584695,147.80015999,9.999e-05,2]
[331044309,1720037690833,153.0,6.568e-05,2]
[331044310,1720037695950,153.0,6.566e-05,2]
[331044312,1720037861674,224.86576674,7.959e-05,2]
[331044313,1720037861701,303.89601623,7.959e-05,2]
[331044314,1720037865063,424.45467359,7.959e-05,2]
[331044315,1720037865090,67.2285224,7.959e-05,2]
[331044316,1720037877589,351.00281997,7.959e-05,2]
[331044317,1720037944779,159.86746579,9.647e-05,2]
[331044318,1720037979364,150.25188166,9.999e-05,2]
[331044319,1720037979391,372.35411778,9.999e-05,2]
[331044320,1720038212067,35.93650719,0.0001212,2]
[331044321,1720038212094,647.29024133,0.0001212,2]
[331044322,1720038214400,81.06044849,0.0001212,2]
[331044323,1720038339107,-806.90195626,0.0001212,2]
[331044324,1720038430105,-746.33984813,0.0001212,2]
[331044325,1720038434112,-216.80646707,0.0001212,2]
[331044326,1720038436158,-1303.65814682,0.0001212,2]
[331044327,1720038437134,-155.75056647,0.0001212,2]
[331044328,1720038443106,-242.19353293,0.0001212,2]
[331044329,1720038446112,-1029.96666138,0.0001212,2]
[331044330,1720038454107,-159.62149372,0.0001212,2]
[331044331,1720038533792,-813.71972672,0.0001212,2]
[331044332,1720038533856,-813.71972672,0.0001212,2]
[331044333,1720038533922,-329.28483107,0.0001212,2]
[331044335,1720038545105,-12652.94806712,0.0001212,2]
[331044336,1720038550110,-4307.844473,0.00013697,2]
[331044337,1720038550136,-241.17376273,0.0001443,2]
[331044338,1720038550158,-27.45236511,0.0001443,2]
[331044340,1720038605712,197.18844965,0.00010959,2]
[331044341,1720038605733,245.9639303,0.00010959,2]
[331044342,1720038605753,65.06762005,0.00010959,2]
[331044377,1720038632012,-276.34542,0.00013764,2]
[331044379,1720038632022,-233.95781151,0.0001443,2]
[331044381,1720038632034,-20.20494585,0.0001443,2]
[331044383,1720038632044,-174.56293143,0.00014689,2]
[331044386,1720038632055,-185.79355534,0.00014788,2]
[331044388,1720038632064,-205.67597735,0.00014788,2]
[331044493,1720038640360,-201.11089543,0.00014788,2]
[331044495,1720038640373,-378.52534047,0.00014788,2]
[331044497,1720038640383,-364.39568993,0.00014788,2]
[331044499,1720038640392,-500.0,0.00014788,2]
[331044501,1720038640402,-500.0,0.00014788,2]
[331044503,1720038640411,-500.0,0.00014788,2]
[331044505,1720038640422,-500.0,0.00014788,2]
[331044507,1720038640431,-361.46177206,0.00014788,2]
[331044509,1720038640442,-220.48092009,0.00014788,2]
[331044511,1720038640453,-500.0,0.00014788,2]
[331044513,1720038640462,-9765.23335579,0.00014788,2]
[331044515,1720038640472,-7394.85486093,0.00014788,2]
[331044517,1720038640482,-61283.46661333,0.00014789,2]
[331044710,1720038646036,-2092.195,0.00014789,2]
[331044711,1720038646050,-596.9,0.00014789,2]
[331044716,1720038765976,153.0,6.171e-05,2]
[331044722,1720038842085,155.40565287,7.48e-05,2]
[331044731,1720039203618,10077.53346621,9.067e-05,2]
[331044732,1720039417940,166.4300597,0.0001099,2]
[331044734,1720039537152,-754.50447761,0.00013465,2]
[331044735,1720039605181,215.511348,0.00012,2]
[331044736,1720039629103,-1014.08783808,0.00013465,2]
[331044737,1720039634102,-1042.10732041,0.00013465,2]
[331044738,1720039635119,-217.6313259,0.00013465,2]
[331044739,1720039635140,-1750.60546168,0.0001394,2]
[331044740,1720039639116,-62.8140034,0.0001394,2]
[331044741,1720039639137,-306.57351132,0.0001404,2]
[331044742,1720039639156,-781.48281648,0.0001404,2]
[331044743,1720039640093,-378.59230923,0.0001404,2]
[331044744,1720039642115,-150.99909156,0.0001404,2]
[331044745,1720039652237,-190.85974906,0.0001404,2]
[331044747,1720039757135,-6585.5695345,0.00013639,2]
[331044748,1720039757156,-737.46082351,0.0001404,2]
[331044749,1720039757176,-30000.0,0.00014041,2]
[331044750,1720039757197,-1183.57913045,0.00014485,2]
[331044751,1720039757218,-202.49509422,0.00014585,2]
[331044752,1720039757240,-202.49509422,0.00014606,2]
[331044753,1720039757260,-155.0,0.0001462,2]
[331044798,1720039833232,-202.49509422,0.00014626,2]
[331044800,1720039833241,-202.49509422,0.00014647,2]
[331044802,1720039833251,-202.49509422,0.00014667,2]
[331044804,1720039833260,-514.06229089,0.0001468,2]
[331044806,1720039833268,-500.0,0.0001468,2]
[331044808,1720039833278,-534.02821603,0.00014681,2]
[331044810,1720039833288,-158.80505934,0.00014681,2]
[331044812,1720039833297,-469.00331134,0.00014681,2]
[331044815,1720039833306,-500.0,0.00014681,2]
[331044818,1720039833315,-464.37750676,0.00014681,2]
[331044821,1720039833324,-500.0,0.00014681,2]
[331044824,1720039833333,-500.0,0.00014681,2]
[331044827,1720039833342,-500.0,0.00014681,2]
[331044830,1720039833351,-500.0,0.00014681,2]
[331044832,1720039833360,-500.0,0.00014681,2]
[331044834,1720039833369,-500.0,0.00014681,2]
[331044836,1720039833378,-500.0,0.00014681,2]
[331044838,1720039833386,-500.0,0.00014681,2]
[331044840,1720039833397,-500.0,0.00014681,2]
[331044842,1720039833406,-500.0,0.00014681,2]
[331044844,1720039833416,-500.0,0.00014681,2]
[331044846,1720039833425,-500.0,0.00014681,2]
[331044848,1720039833434,-500.0,0.00014681,2]
[331044850,1720039833443,-500.0,0.00014681,2]
[331044852,1720039833452,-500.0,0.00014681,2]
[331044854,1720039833461,-500.0,0.00014681,2]
[331044856,1720039833471,-500.0,0.00014681,2]
[331044858,1720039833480,-500.0,0.00014681,2]
[331044860,1720039833490,-500.0,0.00014681,2]
[331044862,1720039833499,-500.0,0.00014681,2]
[331044864,1720039833508,-500.0,0.00014681,2]
[331044866,1720039833517,-500.0,0.00014681,2]
[331044868,1720039833526,-500.0,0.00014681,2]
[331044870,1720039833535,-500.0,0.00014681,2]
[331044871,1720039833546,-500.0,0.00014681,2]
[331044873,1720039833555,-500.0,0.00014681,2]
[331044876,1720039833565,-500.0,0.00014681,2]
[331044878,1720039833574,-500.0,0.00014681,2]
[331044880,1720039833584,-200.03833298,0.00014681,2]
[331045205,1720039840569,-299.96166702,0.00014681,2]
[331045206,1720039840579,-500.0,0.00014681,2]
[331045207,1720039840589,-500.0,0.00014681,2]
[331045208,1720039840598,-500.0,0.00014681,2]
[331045209,1720039840608,-500.0,0.00014681,2]
[331045210,1720039840618,-500.0,0.00014681,2]
[331045211,1720039840627,-500.0,0.00014681,2]
[331045212,1720039840637,-500.0,0.00014681,2]
[331045213,1720039840647,-500.0,0.00014681,2]
[331045214,1720039840656,-500.0,0.00014681,2]
[331045215,1720039840665,-500.0,0.00014681,2]
[331045216,1720039840675,-500.0,0.00014681,2]
[331045217,1720039840684,-176.50285713,0.00014681,2]
[331045218,1720039840694,-500.0,0.00014681,2]
[331045219,1720039840704,-599.02535592,0.00014681,2]
[331045220,1720039840713,-500.0,0.00014681,2]
[331045221,1720039840723,-500.0,0.00014681,2]
[331045222,1720039840732,-500.0,0.00014681,2]
[331045223,1720039840743,-500.0,0.00014681,2]
[331045224,1720039840754,-650.0,0.00014681,2]
[331045225,1720039840764,-500.0,0.00014681,2]
[331045226,1720039840773,-500.0,0.00014681,2]
[331045227,1720039840783,-500.0,0.00014681,2]
[331045228,1720039840796,-500.0,0.00014681,2]
[331045229,1720039840805,-500.0,0.00014681,2]
[331045230,1720039840814,-500.0,0.00014681,2]
[331045231,1720039840824,-500.0,0.00014681,2]
[331045232,1720039840834,-500.0,0.00014681,2]
[331045233,1720039840844,-500.0,0.00014681,2]
[331045234,1720039840854,-500.0,0.00014681,2]
[331045235,1720039840863,-500.0,0.00014681,2]
[331045236,1720039840872,-500.0,0.00014681,2]
[331045237,1720039840881,-500.0,0.00014681,2]
[331045238,1720039840891,-500.0,0.00014681,2]
[331045239,1720039840901,-500.0,0.00014681,2]
[331045240,1720039840910,-500.0,0.00014682,2]
[331045241,1720039840920,-500.0,0.00014682,2]
[331045242,1720039840929,-785.62,0.00014682,2]
[331045243,1720039840939,-500.0,0.00014682,2]
[331045244,1720039840948,-6579.21,0.00014682,2]
[331045245,1720039840958,-721.92,0.00014682,2]
[331045246,1720039840968,-1452.98,0.00014682,2]
[331045247,1720039840978,-500.0,0.00014683,2]
[331045248,1720039840987,-500.0,0.00014683,2]
[331045249,1720039840997,-500.0,0.00014683,2]
[331045250,1720039841006,-500.0,0.00014683,2]
[331045251,1720039841015,-500.0,0.00014683,2]
[331045252,1720039841024,-500.0,0.00014683,2]
[331045253,1720039841034,-500.0,0.00014683,2]
[331045254,1720039841043,-500.0,0.00014683,2]